fUST/lending_fUST_20240223
["ID","MTS","AMOUNT","RATE_DAILY","PERIOD"]
[314918951,1708641046805,-1283.77,0.00019726,2]
[314918952,1708641046816,-500.0,0.00019726,2]
[314918953,1708641046825,-10484.88,0.00019726,2]
[314918954,1708641046835,-500.0,0.00019726,2]
[314918955,1708641046844,-2622.07,0.00019726,2]
[314918956,1708641046853,-500.0,0.00019726,2]
[314918957,1708641046862,-500.0,0.00019726,2]
[314918958,1708641046871,-2255.94,0.00019726,2]
[314918959,1708641046880,-834.22,0.00019726,2]
[314918960,1708641046889,-663.96,0.00019726,2]
[314918961,1708641046898,-508.31,0.00019726,2]
[314918962,1708641046908,-500.0,0.00019726,2]
[314918963,1708641046917,-500.0,0.00019726,2]
[314918964,1708641046927,-864.12,0.00019726,2]
[314918965,1708641046936,-500.0,0.00019726,2]
[314918966,1708641046945,-855.38,0.00019726,2]
[314918967,1708641046955,-500.0,0.00019726,2]
[314918968,1708641046964,-8340.12,0.00019726,2]
[314918969,1708641046974,-300.0,0.00019778,2]
[314918970,1708641046983,-17748.83541634,0.000199,2]
[314918971,1708641046993,-3220.99944093,0.000199,2]
[314918972,1708641047003,-300.0,0.0001992,2]
[314918973,1708641047013,-620.00000002,0.00019986,2]
[314918974,1708641047022,-500.0,0.00019999,2]
[314918975,1708641047034,-500.0,0.00019999,2]
[314918976,1708641047044,-500.0,0.00019999,2]
[314918977,1708641047054,-500.0,0.00019999,2]
[314918978,1708641047063,-211.39173041,0.00019999,2]
[314918979,1708641047073,-452.63940676,0.00019999,2]
[314918980,1708641047083,-500.0,0.00019999,2]
[314918981,1708641047092,-208.48547334,0.00019999,2]
[314918982,1708641047102,-500.0,0.00019999,2]
[314918983,1708641047112,-500.0,0.00019999,2]
[314918984,1708641047121,-500.0,0.00019999,2]
[314918985,1708641047131,-500.0,0.00019999,2]
[314918986,1708641047141,-500.0,0.00019999,2]
[314918987,1708641047150,-500.0,0.00019999,2]
[314918988,1708641047160,-500.0,0.00019999,2]
[314918989,1708641047169,-500.0,0.00019999,2]
[314918990,1708641047179,-500.0,0.00019999,2]
[314918991,1708641047189,-500.0,0.00019999,2]
[314918992,1708641047198,-500.0,0.00019999,2]
[314918993,1708641047208,-500.0,0.00019999,2]
[314918994,1708641047218,-500.0,0.00019999,2]
[314918995,1708641047228,-367.30106066,0.00019999,2]
[314918996,1708641047237,-500.0,0.00019999,2]
[314918997,1708641047248,-500.0,0.00019999,2]
[314918998,1708641047258,-500.0,0.00019999,2]
[314918999,1708641047268,-500.0,0.00019999,2]
[314919000,1708641047278,-500.0,0.00019999,2]
[314919001,1708641047288,-500.0,0.00019999,2]
[314919002,1708641047297,-500.0,0.00019999,2]
[314919003,1708641047307,-200.77519584,0.00019999,2]
[314919004,1708641047317,-500.0,0.00019999,2]
[314919005,1708641047326,-500.0,0.00019999,2]
[314919006,1708641047335,-500.0,0.00019999,2]
[314919007,1708641047344,-500.0,0.00019999,2]
[314919008,1708641047354,-500.0,0.00019999,2]
[314919009,1708641047363,-500.0,0.00019999,2]
[314919010,1708641047372,-500.0,0.00019999,2]
[314919011,1708641047382,-500.0,0.00019999,2]
[314919012,1708641047391,-500.0,0.00019999,2]
[314919013,1708641047401,-500.0,0.00019999,2]
[314919014,1708641047410,-500.0,0.00019999,2]
[314919015,1708641047419,-500.0,0.00019999,2]
[314919016,1708641047430,-500.0,0.00019999,2]
[314919017,1708641047439,-514.91403762,0.00019999,2]
[314919018,1708641047448,-500.0,0.00019999,2]
[314919019,1708641047458,-500.0,0.00019999,2]
[314919020,1708641047468,-450.0,0.00019999,2]
[314919021,1708641047476,-1399.07319377,0.0002,2]
[314919022,1708641047485,-169.67217718,0.0002,2]
[314919023,1708641047495,-5499.99999205,0.0002,2]
[314919024,1708641047504,-11341.76262103,0.0002,2]
[314919025,1708641047513,-1020.47542586,0.0002,2]
[314919026,1708641047522,-2509.74,0.0002,2]
[314919027,1708641047532,-500.0,0.0002,2]
[314919028,1708641047544,-169.83679511,0.0002,2]
[314919029,1708641047554,-84192.77306685,0.0002,4]
[314919031,1708641049649,-2715.19569661,0.00019177,2]
[314919032,1708641049659,-586.20253158,0.00019178,2]
[314919033,1708641049668,-500.0,0.00019178,2]
[314919034,1708641049677,-500.0,0.00019178,2]
[314919035,1708641049687,-500.0,0.00019452,2]
[314919036,1708641049696,-500.0,0.00019726,2]
[314919037,1708641049706,-113864.94086572,0.0002,4]
[314919038,1708641049715,-500.0,0.0002,2]
[314919039,1708641049725,-488.77273392,0.0002,2]
[314919040,1708641049734,-276.33366245,0.0002,2]
[314919041,1708641049743,-5629.81197272,0.0002,2]
[314919044,1708642046017,5000.0,0.00021088,14]
[314919045,1708642053978,5000.0,0.00021088,14]
[314919046,1708642061983,5000.0,0.00021088,14]
[314919047,1708642070567,3836.14868182,0.00021088,14]
[314919069,1708642232058,-155.05271792,0.00017498,2]
[314919070,1708642232068,-2715.19569661,0.00017499,2]
[314919073,1708642232077,-500.0,0.000175,2]
[314919076,1708642232098,-500.0,0.0001789,2]
[314919077,1708642232107,-294.65107301,0.000181,2]
[314919079,1708642232117,-500.0,0.000181,2]
[314919080,1708642232126,-208.465495,0.00018101,2]
[314919082,1708642232136,-3898.7723385,0.00018241,2]
[314919085,1708642232145,-329.23758326,0.000189,2]
[314919087,1708642232155,-169.6556243,0.00019078,2]
[314919088,1708642232164,-153.0,0.00019123,2]
[314919091,1708642232173,-2247.16570637,0.00019148,2]
[314919093,1708642232183,-273.7273831,0.00019177,2]
[314919095,1708642232192,-500.0,0.00019178,2]
[314919097,1708642232202,-500.62699702,0.00019178,2]
[314919098,1708642232211,-180.86921121,0.00019178,2]
[314919100,1708642232220,-500.0,0.00019178,2]
[314919102,1708642232230,-500.0,0.00019178,2]
[314919104,1708642232239,-500.0,0.00019178,2]
[314919106,1708642232249,-500.2264279,0.00019178,2]
[314919107,1708642232259,-500.0,0.00019178,2]
[314919108,1708642232268,-500.0,0.00019178,2]
[314919109,1708642232278,-500.0,0.00019178,2]
[314919110,1708642232287,-151.0,0.00019178,2]
[314919111,1708642232296,-500.0,0.00019178,2]
[314919112,1708642232305,-500.0,0.00019178,2]
[314919113,1708642232314,-500.0,0.00019178,2]
[314919114,1708642232323,-819.19,0.00019178,2]
[314919115,1708642232333,-500.0,0.00019178,2]
[314919116,1708642232342,-501.37539635,0.00019178,2]
[314919117,1708642232351,-500.0,0.00019178,2]
[314919118,1708642232361,-500.0,0.00019178,2]
[314919119,1708642232370,-500.0,0.00019178,2]
[314919120,1708642232379,-500.0,0.00019178,2]
[314919121,1708642232389,-500.0,0.00019178,2]
[314919122,1708642232398,-500.0,0.00019178,2]
[314919123,1708642232407,-500.0,0.00019178,2]
[314919124,1708642232416,-500.0,0.00019178,2]
[314919125,1708642232426,-500.26870046,0.00019178,2]
[314919126,1708642232435,-500.0,0.00019178,2]
[314919127,1708642232445,-500.0,0.00019178,2]
[314919128,1708642232454,-1639.71,0.00019178,2]
[314919129,1708642232464,-500.0,0.00019178,2]
[314919130,1708642232473,-538.31,0.00019178,2]
[314919131,1708642232482,-500.0,0.00019178,2]
[314919132,1708642232491,-1000.0,0.00019178,2]
[314919133,1708642232500,-500.11813895,0.00019178,2]
[314919134,1708642232509,-500.0,0.00019178,2]
[314919135,1708642232518,-500.0,0.00019178,2]
[314919136,1708642232527,-500.0,0.00019178,2]
[314919137,1708642232536,-500.0,0.00019178,2]
[314919138,1708642232545,-1312.38,0.00019178,2]
[314919139,1708642232554,-500.0,0.00019178,2]
[314919140,1708642232563,-500.0,0.00019178,2]
[314919141,1708642232572,-670.29,0.00019178,2]
[314919142,1708642232582,-500.0,0.00019178,2]
[314919143,1708642232591,-500.0,0.00019178,2]
[314919144,1708642232600,-500.0,0.00019178,2]
[314919145,1708642232609,-500.0,0.00019178,2]
[314919146,1708642232618,-500.0,0.00019178,2]
[314919147,1708642232627,-500.0,0.00019178,2]
[314919148,1708642232636,-500.0,0.00019178,2]
[314919149,1708642232645,-235.96892945,0.00019178,2]
[314919150,1708642232654,-500.0,0.00019178,2]
[314919151,1708642232663,-500.0,0.00019178,2]
[314919152,1708642232673,-500.0,0.00019178,2]
[314919153,1708642232682,-500.0,0.00019178,2]
[314919154,1708642232691,-500.0,0.00019178,2]
[314919156,1708642232700,-864.12,0.00019178,2]
[314919157,1708642232710,-500.0,0.00019178,2]
[314919158,1708642232719,-500.0,0.00019178,2]
[314919159,1708642232728,-500.0,0.00019178,2]
[314919161,1708642232737,-500.0,0.00019178,2]
[314919162,1708642232747,-500.0,0.00019178,2]
[314919164,1708642232756,-520.17,0.00019178,2]
[314919166,1708642232766,-500.0,0.00019178,2]
[314919168,1708642232776,-500.0,0.00019178,2]
[314919170,1708642232785,-2132.56,0.00019178,2]
[314919172,1708642232794,-500.0,0.00019178,2]
[314919174,1708642232803,-500.0,0.00019178,2]
[314919176,1708642232812,-969.81,0.00019178,2]
[314919178,1708642232822,-500.0,0.00019178,2]
[314919180,1708642232831,-500.0,0.00019178,2]
[314919182,1708642232840,-2036.83,0.00019178,2]
[314919184,1708642232849,-500.0,0.00019178,2]
[314919186,1708642232859,-500.0,0.00019178,2]
[314919188,1708642232871,-500.0,0.00019178,2]
[314919190,1708642232880,-500.0,0.00019178,2]
[314919192,1708642232891,-500.0,0.00019178,2]
[314919193,1708642232901,-1132.44,0.00019178,2]
[314919194,1708642232910,-500.0,0.00019178,2]
[314919196,1708642232919,-8340.12,0.00019178,2]
[314919198,1708642232928,-765.3,0.00019178,2]
[314919200,1708642232939,-500.0,0.00019178,2]
[314919202,1708642232948,-500.0,0.00019178,2]
[314919204,1708642232957,-500.0,0.00019178,2]
[314919206,1708642232968,-4001.0,0.00019178,2]
[314919208,1708642232978,-500.0,0.00019178,2]
[314919210,1708642232987,-384.70406202,0.00019178,2]
[314919213,1708642233001,-721.13970817,0.00019178,2]
[314919296,1708642238925,-5612.75622981,0.00019178,2]
[314919297,1708642238936,-3612.61,0.00019178,2]
[314919298,1708642238946,-1591.64,0.00019178,2]
[314919299,1708642238955,-500.0,0.00019178,2]
[314919300,1708642238965,-500.0,0.00019178,2]
[314919301,1708642238975,-488.39234827,0.00019178,2]
[314919303,1708642238984,-500.0,0.00019178,2]
[314919305,1708642238993,-1574.6,0.00019178,2]
[314919307,1708642239002,-929.28,0.00019178,2]
[314919309,1708642239011,-213.90309235,0.00019178,2]
[314919311,1708642239020,-504.14747421,0.00019178,2]
[314919313,1708642239029,-500.0,0.00019178,2]
[314919314,1708642239038,-2484.17,0.00019178,2]
[314919315,1708642239047,-546.3631228,0.00019178,2]
[314919316,1708642239056,-345.4447297,0.00019178,2]
[314919317,1708642239066,-500.0,0.00019178,2]
[314919318,1708642239075,-500.0,0.00019178,2]
[314919319,1708642239084,-500.0,0.00019178,2]
[314919320,1708642239093,-615.71848017,0.00019178,2]
[314919321,1708642239102,-500.0,0.00019178,2]
[314919322,1708642239112,-500.0,0.00019178,2]
[314919323,1708642239121,-500.0,0.00019178,2]
[314919324,1708642239130,-1440.02,0.00019178,2]
[314919325,1708642239139,-1000.0,0.00019178,2]
[314919326,1708642239148,-1224.59,0.00019178,2]
[314919327,1708642239157,-500.0,0.00019178,2]
[314919328,1708642239168,-500.0,0.00019178,2]
[314919329,1708642239177,-500.0,0.00019178,2]
[314919330,1708642239186,-500.0,0.00019178,2]
[314919331,1708642239195,-500.0,0.00019178,2]
[314919332,1708642239204,-500.0,0.00019178,2]
[314919333,1708642239213,-1304.61,0.00019178,2]
[314919334,1708642239223,-500.0,0.00019178,2]
[314919335,1708642239232,-500.0,0.00019178,2]
[314919336,1708642239243,-500.0,0.00019178,2]
[314919337,1708642239253,-2279.36,0.00019178,2]
[314919338,1708642239262,-500.47459778,0.00019178,2]
[314919339,1708642239272,-500.0,0.00019178,2]
[314919340,1708642239282,-500.0,0.00019178,2]
[314919341,1708642239292,-5933.44074159,0.00019178,2]
[314919342,1708642239305,-112.58925841,0.00019178,2]
[314919343,1708642239314,-500.0,0.00019178,2]
[314919344,1708642239324,-11004.3,0.00019178,2]
[314919345,1708642239334,-2622.07,0.00019178,2]
[314919346,1708642239343,-500.0,0.00019178,2]
[314919347,1708642239353,-500.0,0.00019178,2]
[314919348,1708642239362,-582.7919386,0.00019178,2]
[314919349,1708642239371,-699.03,0.00019178,2]
[314919350,1708642239381,-500.0,0.00019178,2]
[314919351,1708642239390,-242.4307533,0.00019178,2]
[314919352,1708642239399,-380.59583045,0.00019178,2]
[314919353,1708642239408,-500.0,0.00019178,2]
[314919354,1708642239418,-500.0,0.00019178,2]
[314919355,1708642239426,-663.96,0.00019178,2]
[314919356,1708642239436,-508.31,0.00019178,2]
[314919357,1708642239445,-500.0,0.00019178,2]
[314919358,1708642239454,-500.0,0.00019178,2]
[314919359,1708642239463,-500.0,0.00019178,2]
[314919360,1708642239472,-174.55924258,0.00019178,2]
[314919361,1708642239481,-500.0,0.00019178,2]
[314919362,1708642239491,-500.0,0.00019178,2]
[314919363,1708642239500,-2255.94,0.00019178,2]
[314919364,1708642239510,-500.0,0.00019178,2]
[314919365,1708642239519,-170.91579356,0.00019178,2]
[314919366,1708642239528,-500.0,0.00019178,2]
[314919367,1708642239536,-500.0,0.00019178,2]
[314919368,1708642239545,-834.22,0.00019178,2]
[314919369,1708642239554,-500.0,0.00019178,2]
[314919370,1708642239563,-500.0,0.00019178,2]
[314919371,1708642239572,-264.49081926,0.00019178,2]
[314919372,1708642239581,-500.0,0.00019178,2]
[314919373,1708642239590,-500.80808631,0.00019178,2]
[314919374,1708642239600,-500.0,0.00019178,2]
[314919375,1708642239610,-500.0,0.00019178,2]
[314919376,1708642239619,-500.0,0.00019178,2]
[314919377,1708642239628,-500.0,0.00019178,2]
[314919378,1708642239637,-500.0,0.00019178,2]
[314919379,1708642239646,-500.0,0.00019178,2]
[314919380,1708642239656,-428.79225024,0.00019178,2]
[314919381,1708642239666,-500.0,0.00019178,2]
[314919382,1708642239676,-500.0,0.00019178,2]
[314919383,1708642239685,-946.93,0.00019178,2]
[314919384,1708642239695,-405.49221772,0.00019178,2]
[314919385,1708642239704,-855.38,0.00019178,2]
[314919386,1708642239714,-518.9188772,0.00019178,2]
[314919387,1708642239722,-3904.43987977,0.00019178,2]
[314919388,1708642239820,-2001.85690223,0.00019178,2]
[314919389,1708642239832,-1339.12430165,0.00019178,2]
[314919390,1708642239844,-747.19891635,0.00019178,2]
[314919391,1708642239853,-411.75761958,0.00019178,2]
[314919397,1708642241208,-711.4459985,0.00019178,2]
[314919398,1708642241223,-994.5456235,0.00019178,2]
[314919404,1708642243604,-1716.54075842,0.00019178,2]
[314919406,1708642243614,-171.778929,0.00019178,2]
[314919407,1708642243623,-166.666666,0.00019178,2]
[314919410,1708642243746,-171.286285,0.00019178,2]
[314919411,1708642243756,-153.0,0.000192,2]
[314919412,1708642243767,-153.0,0.000192,2]
[314919413,1708642243776,-153.0,0.000192,2]
[314919414,1708642243785,-500.0,0.0001935,2]
[314919415,1708642243795,-500.0,0.00019445,2]
[314919416,1708642243804,-500.0,0.00019445,2]
[314919417,1708642243813,-522.939739,0.00019445,2]
[314919418,1708642243822,-500.0,0.00019445,2]
[314919419,1708642243831,-500.0,0.00019445,2]
[314919420,1708642243840,-501.5610479,0.00019445,2]
[314919421,1708642243849,-680.39683744,0.00019445,2]
[314919422,1708642243858,-420.32759426,0.00019445,2]
[314919423,1708642243868,-500.0,0.00019445,2]
[314919424,1708642243877,-680.39683744,0.00019445,2]
[314919425,1708642243886,-242.41526906,0.00019445,2]
[314919426,1708642243898,-287.94741207,0.00019445,2]
[314919427,1708642243907,-680.39683744,0.00019445,2]
[314919428,1708642243916,-500.0,0.00019445,2]
[314919429,1708642243925,-680.39683744,0.00019445,2]
[314919430,1708642243934,-680.39683744,0.00019445,2]
[314919431,1708642243944,-680.39683744,0.00019445,2]
[314919432,1708642243953,-680.39683744,0.00019445,2]
[314919433,1708642243962,-680.39683744,0.00019445,2]
[314919434,1708642243971,-680.39683744,0.00019445,2]
[314919435,1708642243980,-680.39683744,0.00019445,2]
[314919436,1708642243989,-680.39683744,0.00019445,2]
[314919437,1708642243998,-680.39683744,0.00019445,2]
[314919438,1708642244007,-680.39683744,0.00019445,2]
[314919439,1708642244016,-680.39683744,0.00019445,2]
[314919440,1708642244025,-680.39683744,0.00019445,2]
[314919441,1708642244035,-680.39683744,0.00019445,2]
[314919442,1708642244044,-680.39683744,0.00019445,2]
[314919443,1708642244053,-680.39683744,0.00019445,2]
[314919444,1708642244063,-680.39683744,0.00019445,2]
[314919445,1708642244072,-680.39683744,0.00019445,2]
[314919446,1708642244081,-680.39683744,0.00019445,2]
[314919447,1708642244090,-680.39683744,0.00019445,2]
[314919448,1708642244099,-680.39683744,0.00019445,2]
[314919449,1708642244108,-680.39683744,0.00019445,2]
[314919450,1708642244117,-680.39683744,0.00019445,2]
[314919451,1708642244127,-680.39683744,0.00019445,2]
[314919452,1708642244136,-680.39683744,0.00019445,2]
[314919453,1708642244145,-680.39683744,0.00019445,2]
[314919454,1708642244155,-680.39683744,0.00019445,2]
[314919455,1708642244165,-680.39683744,0.00019445,2]
[314919456,1708642244174,-680.39683744,0.00019445,2]
[314919457,1708642244183,-680.39683744,0.00019445,2]
[314919458,1708642244193,-680.39683744,0.00019445,2]
[314919459,1708642244202,-680.39683744,0.00019445,2]
[314919460,1708642244212,-680.39683744,0.00019445,2]
[314919461,1708642244222,-680.39683744,0.00019445,2]
[314919462,1708642244232,-680.39683744,0.00019445,2]
[314919463,1708642244241,-680.39683744,0.00019445,2]
[314919464,1708642244251,-680.39683744,0.00019445,2]
[314919465,1708642244263,-680.39683744,0.00019445,2]
[314919466,1708642244274,-680.39683744,0.00019445,2]
[314919467,1708642244285,-680.39683744,0.00019445,2]
[314919468,1708642244294,-680.39683744,0.00019445,2]
[314919469,1708642244305,-680.39683744,0.00019445,2]
[314919470,1708642244316,-680.39683744,0.00019445,2]
[314919471,1708642244325,-680.39683744,0.00019445,2]
[314919472,1708642244336,-680.39683744,0.00019445,2]
[314919473,1708642244346,-680.39683744,0.00019445,2]
[314919474,1708642244356,-680.39683744,0.00019445,2]
[314919475,1708642244365,-680.39683744,0.00019445,2]
[314919476,1708642244375,-680.39683744,0.00019445,2]
[314919477,1708642244385,-680.39683744,0.00019445,2]
[314919478,1708642244395,-680.39683744,0.00019445,2]
[314919479,1708642244405,-680.39683744,0.00019445,2]
[314919480,1708642244415,-680.39683744,0.00019445,2]
[314919481,1708642244424,-680.39683744,0.00019445,2]
[314919482,1708642244434,-680.39683744,0.00019445,2]
[314919483,1708642244443,-680.39683744,0.00019445,2]
[314919484,1708642244453,-680.39683744,0.00019445,2]
[314919485,1708642244462,-680.39683744,0.00019445,2]
[314919486,1708642244473,-680.39683744,0.00019445,2]
[314919487,1708642244482,-680.39683744,0.00019445,2]
[314919488,1708642244492,-680.39683744,0.00019445,2]
[314919489,1708642244501,-680.39683744,0.00019445,2]
[314919490,1708642244511,-680.39683744,0.00019445,2]
[314919491,1708642244520,-151.0,0.00019446,2]
[314919492,1708642244529,-500.0,0.00019448,2]
[314919493,1708642244538,-500.0,0.00019448,2]
[314919494,1708642244548,-295.32512171,0.00019451,2]
[314919495,1708642244558,-500.0,0.00019451,2]
[314919496,1708642244569,-500.0,0.00019451,2]
[314919497,1708642244578,-500.0,0.00019452,2]
[314919498,1708642244587,-500.0,0.00019452,2]
[314919499,1708642244596,-819.19,0.00019452,2]
[314919500,1708642244605,-500.0,0.00019452,2]
[314919501,1708642244614,-456.80215265,0.00019452,2]
[314919502,1708642244625,-501.64511843,0.00019452,2]
[314919503,1708642244637,-500.0,0.00019452,2]
[314919504,1708642244646,-500.0,0.00019452,2]
[314919505,1708642244657,-1639.71,0.00019452,2]
[314919506,1708642244667,-538.31,0.00019452,2]
[314919507,1708642244677,-1312.38,0.00019452,2]
[314919508,1708642244686,-670.29,0.00019452,2]
[314919509,1708642244696,-411.01,0.00019452,2]
[314919510,1708642244705,-864.12,0.00019452,2]
[314919511,1708642244714,-500.0,0.00019452,2]
[314919512,1708642244725,-2132.56,0.00019452,2]
[314919513,1708642244735,-969.81,0.00019452,2]
[314919514,1708642244744,-2036.83,0.00019452,2]
[314919515,1708642244753,-500.0,0.00019452,2]
[314919516,1708642244762,-500.0,0.00019452,2]
[314919517,1708642244772,-1132.44,0.00019452,2]
[314919518,1708642244781,-765.3,0.00019452,2]
[314919519,1708642244790,-6718.6,0.00019452,2]
[314919520,1708642244799,-3612.61,0.00019452,2]
[314919521,1708642244810,-1591.64,0.00019452,2]
[314919522,1708642244820,-500.0,0.00019452,2]
[314919523,1708642244829,-1574.6,0.00019452,2]
[314919524,1708642244838,-929.28,0.00019452,2]
[314919525,1708642244847,-2484.17,0.00019452,2]
[314919526,1708642244856,-500.0,0.00019452,2]
[314919527,1708642244865,-500.0,0.00019452,2]
[314919528,1708642244874,-1440.02,0.00019452,2]
[314919529,1708642244883,-1224.59,0.00019452,2]
[314919530,1708642244893,-500.0,0.00019452,2]
[314919531,1708642244902,-500.0,0.00019452,2]
[314919532,1708642244911,-1304.61,0.00019452,2]
[314919533,1708642244920,-500.0,0.00019452,2]
[314919534,1708642244945,-2279.36,0.00019452,2]
[314919535,1708642244955,-500.0,0.00019452,2]
[314919536,1708642244965,-6046.03,0.00019452,2]
[314919537,1708642244975,-500.0,0.00019452,2]
[314919538,1708642244984,-11004.3,0.00019452,2]
[314919539,1708642244993,-2622.07,0.00019452,2]
[314919540,1708642245003,-500.0,0.00019452,2]
[314919541,1708642245012,-699.03,0.00019452,2]
[314919542,1708642245022,-383.62336049,0.00019452,2]
[314919543,1708642245031,-500.0,0.00019452,2]
[314919544,1708642245040,-663.96,0.00019452,2]
[314919545,1708642245049,-508.31,0.00019452,2]
[314919546,1708642245059,-500.0,0.00019452,2]
[314919547,1708642245068,-500.0,0.00019452,2]
[314919548,1708642245077,-500.0,0.00019452,2]
[314919549,1708642245086,-2255.94,0.00019452,2]
[314919550,1708642245095,-500.0,0.00019452,2]
[314919551,1708642245104,-500.0,0.00019452,2]
[314919552,1708642245113,-500.0,0.00019452,2]
[314919553,1708642245121,-834.22,0.00019452,2]
[314919554,1708642245130,-500.0,0.00019452,2]
[314919555,1708642245139,-500.0,0.00019452,2]
[314919556,1708642245149,-500.0,0.00019452,2]
[314919557,1708642245158,-946.93,0.00019452,2]
[314919558,1708642245166,-855.38,0.00019452,2]
[314919559,1708642245176,-7992.62,0.00019452,2]
[314919560,1708642245188,-3834.29,0.00019452,2]
[314919561,1708642245197,-153.0,0.000195,2]
[314919562,1708642245206,-153.0,0.000195,2]
[314919563,1708642245215,-153.0,0.000195,2]
[314919564,1708642245225,-300.0,0.00019586,2]
[314919565,1708642245234,-49355.73772723,0.00019626,2]
[314919566,1708642245245,-166.666666,0.00019627,2]
[314919567,1708642245255,-500.0,0.00019679,2]
[314919568,1708642245265,-500.0,0.00019679,2]
[314919569,1708642245277,-317.4396204,0.000197,2]
[314919570,1708642245286,-268.2009586,0.000197,2]
[314919571,1708642245295,-307.2762618,0.000197,2]
[314919572,1708642245305,-500.0,0.00019725,2]
[314919573,1708642245314,-401.57193576,0.00019725,2]
[314919574,1708642245323,-500.0,0.00019726,2]
[314919575,1708642245332,-500.0,0.00019726,2]
[314919576,1708642245342,-819.19,0.00019726,2]
[314919577,1708642245351,-500.0,0.00019726,2]
[314919578,1708642245361,-500.0,0.00019726,2]
[314919579,1708642245370,-500.0,0.00019726,2]
[314919580,1708642245379,-1639.71,0.00019726,2]
[314919581,1708642245389,-538.31,0.00019726,2]
[314919582,1708642245398,-1312.38,0.00019726,2]
[314919583,1708642245407,-670.29,0.00019726,2]
[314919584,1708642245417,-864.12,0.00019726,2]
[314919585,1708642245426,-500.0,0.00019726,2]
[314919586,1708642245436,-2132.56,0.00019726,2]
[314919587,1708642245445,-969.81,0.00019726,2]
[314919588,1708642245455,-2036.83,0.00019726,2]
[314919589,1708642245465,-500.0,0.00019726,2]
[314919590,1708642245475,-1132.44,0.00019726,2]
[314919591,1708642245484,-765.3,0.00019726,2]
[314919592,1708642245493,-6718.6,0.00019726,2]
[314919593,1708642245503,-3612.61,0.00019726,2]
[314919594,1708642245512,-1591.64,0.00019726,2]
[314919595,1708642245521,-500.0,0.00019726,2]
[314919596,1708642245531,-1574.6,0.00019726,2]
[314919597,1708642245541,-929.28,0.00019726,2]
[314919598,1708642245550,-2484.17,0.00019726,2]
[314919599,1708642245560,-500.0,0.00019726,2]
[314919600,1708642245569,-500.0,0.00019726,2]
[314919601,1708642245578,-1440.02,0.00019726,2]
[314919602,1708642245588,-1224.59,0.00019726,2]
[314919603,1708642245597,-500.0,0.00019726,2]
[314919604,1708642245606,-1304.61,0.00019726,2]
[314919605,1708642245615,-500.0,0.00019726,2]
[314919606,1708642245624,-2279.36,0.00019726,2]
[314919607,1708642245633,-6046.03,0.00019726,2]
[314919608,1708642245643,-500.0,0.00019726,2]
[314919609,1708642245652,-11004.3,0.00019726,2]
[314919610,1708642245660,-2622.07,0.00019726,2]
[314919611,1708642245670,-500.0,0.00019726,2]
[314919612,1708642245679,-699.03,0.00019726,2]
[314919613,1708642245688,-500.0,0.00019726,2]
[314919614,1708642245697,-663.96,0.00019726,2]
[314919615,1708642245706,-508.31,0.00019726,2]
[314919616,1708642245715,-500.0,0.00019726,2]
[314919617,1708642245725,-500.0,0.00019726,2]
[314919618,1708642245734,-2255.94,0.00019726,2]
[314919619,1708642245743,-500.0,0.00019726,2]
[314919620,1708642245752,-834.22,0.00019726,2]